fUSD/lending_fUSD_20260217
["ID","MTS","AMOUNT","RATE_DAILY","PERIOD"]
[405829661,1771345847871,-151.0,0.00013869,2]
[405829662,1771345847881,-151.0,0.00013869,2]
[405829663,1771345847891,-151.0,0.00013869,2]
[405829664,1771345847901,-253.46833,0.00013869,2]
[405829665,1771345847914,-504.64635869,0.00013873,2]
[405829666,1771345847924,-500.0,0.00013873,2]
[405829667,1771345847934,-502.22718587,0.00013873,2]
[405829668,1771345847944,-500.0,0.00013873,2]
[405829669,1771345847954,-504.09468333,0.00013873,2]
[405829670,1771345847964,-501.23450591,0.00013873,2]
[405829671,1771345847975,-163.87964352,0.00013873,2]
[405829672,1771345847985,-500.0,0.00013873,2]
[405829673,1771345847995,-500.0,0.00013873,2]
[405829674,1771345848005,-525.66819458,0.00013873,2]
[405829675,1771345848015,-523.64780308,0.00013873,2]
[405829676,1771345848025,-500.0,0.00013873,2]
[405829677,1771345848034,-500.0,0.00013873,2]
[405829678,1771345848044,-500.0,0.00013873,2]
[405829679,1771345848053,-500.0,0.00013873,2]
[405829680,1771345848064,-161.87499248,0.00013873,2]
[405829681,1771345848073,-500.0,0.00013873,2]
[405829682,1771345848173,-500.0,0.00013873,2]
[405829683,1771345848183,-500.0,0.00013873,2]
[405829684,1771345848193,-500.0,0.00013873,2]
[405829685,1771345848202,-161.02829907,0.00013873,2]
[405829686,1771345848211,-500.0,0.00013873,2]
[405829687,1771345848221,-500.0,0.00013873,2]
[405829688,1771345848230,-436.04334629,0.00013873,2]
[405829689,1771345848240,-160.29464371,0.00013873,2]
[405829690,1771345848249,-500.0,0.00013873,2]
[405829691,1771345848259,-503.17452108,0.00013873,2]
[405829692,1771345848268,-500.93096914,0.00013873,2]
[405829693,1771345848278,-160.44342054,0.00013873,2]
[405829694,1771345848287,-500.0,0.00013873,2]
[405829695,1771345848296,-569.45122683,0.00013873,2]
[405829696,1771345848305,-500.0,0.00013873,2]
[405829697,1771345848315,-500.0,0.00013873,2]
[405829698,1771345848324,-500.0,0.00013873,2]
[405829699,1771345848333,-503.05494034,0.00013873,2]
[405829700,1771345848342,-500.0,0.00013873,2]
[405829701,1771345848352,-500.0,0.00013873,2]
[405829702,1771345848361,-500.0,0.00013873,2]
[405829703,1771345848370,-505.14943602,0.00013873,2]
[405829704,1771345848380,-500.0,0.00013873,2]
[405829705,1771345848389,-161.95965132,0.00013873,2]
[405829706,1771345848398,-597.93872342,0.00013873,2]
[405829707,1771345848408,-501.43225284,0.00013873,2]
[405829708,1771345848421,-500.0,0.00013873,2]
[405829709,1771345848431,-514.27467488,0.00013873,2]
[405829710,1771345848441,-500.0,0.00013873,2]
[405829711,1771345848450,-500.0,0.00013873,2]
[405829712,1771345848460,-500.0,0.00013873,2]
[405829713,1771345848469,-500.0,0.00013873,2]
[405829714,1771345848478,-500.0,0.00013873,2]
[405829715,1771345848487,-500.0,0.00013873,2]
[405829716,1771345848496,-500.0,0.00013873,2]
[405829717,1771345848507,-500.0,0.00013873,2]
[405829718,1771345848516,-285.23122629,0.00013873,2]
[405829719,1771345848525,-559.34470409,0.00013873,2]
[405829720,1771345848534,-500.0,0.00013873,2]
[405829721,1771345848543,-500.0,0.00013873,2]
[405829722,1771345848552,-500.0,0.00013873,2]
[405829723,1771345848561,-500.0,0.00013873,2]
[405829724,1771345848571,-186.11515271,0.00013873,2]
[405829725,1771345848580,-173.57638878,0.00013886,2]
[405829726,1771345848590,-160.0,0.00013886,2]
[405829727,1771345848599,-1500.0,0.00014,2]
[405829728,1771345848608,-39267.66050178,0.00014054,2]
[405829729,1771345848617,-28272.67546645,0.00014054,2]
[405829730,1771345848626,-201.26544868,0.00014093,2]
[405829731,1771345848636,-1000.0,0.00014106,2]
[405829732,1771345848644,-1000.0,0.00014106,2]
[405829733,1771345848654,-1000.0,0.00014106,2]
[405829734,1771345848665,-1000.0,0.00014106,2]
[405829735,1771345848675,-1000.0,0.00014106,2]
[405829736,1771345848685,-1000.0,0.00014106,2]
[405829737,1771345848695,-1000.0,0.00014106,2]
[405829738,1771345848705,-1000.0,0.00014106,2]
[405829739,1771345848715,-1000.0,0.00014106,2]
[405829740,1771345848724,-258.95,0.00014259,2]
[405829741,1771345848733,-704.93,0.00014384,2]
[405829742,1771345848742,-200.0,0.00014384,2]
[405829743,1771345848751,-200.0,0.00014384,2]
[405829744,1771345848760,-500.0,0.00014384,2]
[405829745,1771345848769,-10349.13153648,0.0001439,2]
[405829746,1771345848778,-1000.0,0.00014421,2]
[405829747,1771345848788,-501.35605949,0.00014421,2]
[405829748,1771345848797,-1009.6821238,0.00014421,2]
[405829749,1771345848806,-509.85751715,0.00014421,2]
[405829750,1771345848816,-895.07222913,0.00014421,2]
[405829751,1771345848825,-502.68727614,0.00014421,2]
[405829752,1771345848834,-1000.0,0.00014421,2]
[405829753,1771345848843,-502.86775924,0.00014421,2]
[405829754,1771345848851,-1000.0,0.00014421,2]
[405829755,1771345848861,-1004.47861685,0.00014421,2]
[405829756,1771345848870,-565.44208777,0.00014421,2]
[405829757,1771345848879,-1000.0,0.00014421,2]
[405829758,1771345848889,-1000.0,0.00014421,2]
[405829759,1771345848899,-190.951752,0.00014421,2]
[405829760,1771345848908,-1000.0,0.00014421,2]
[405829761,1771345848919,-151.60051968,0.00014421,2]
[405829762,1771345848928,-1000.0,0.00014421,2]
[405829763,1771345848938,-1000.0,0.00014421,2]
[405829764,1771345848947,-501.86536618,0.00014421,2]
[405829765,1771345848956,-1000.0,0.00014421,2]
[405829766,1771345848965,-1000.0,0.00014421,2]
[405829767,1771345848974,-1000.0,0.00014421,2]
[405829768,1771345848983,-1000.0,0.00014421,2]
[405829769,1771345848993,-1000.0,0.00014421,2]
[405829770,1771345849002,-1000.0,0.00014421,2]
[405829771,1771345849011,-895.81638304,0.00014421,2]
[405829772,1771345849020,-1000.0,0.00014421,2]
[405829773,1771345849030,-1000.0,0.00014421,2]
[405829774,1771345849039,-1000.0,0.00014421,2]
[405829775,1771345849048,-1000.0,0.00014421,2]
[405829776,1771345849059,-1000.0,0.00014421,2]
[405829777,1771345849073,-1001.06962982,0.00014421,2]
[405829778,1771345849082,-1000.0,0.00014421,2]
[405829779,1771345849092,-1000.0,0.00014421,2]
[405829780,1771345849102,-502.80271569,0.00014421,2]
[405829781,1771345849112,-3701.0,0.000145,2]
[405829782,1771345849122,-237.8396048,0.00014545,2]
[405829783,1771345849133,-2002.000001,0.00014611,7]
[405829784,1771345849143,-385.0,0.00014611,7]
[405829785,1771345849153,-151.0,0.00014611,2]
[405829786,1771345849166,-151.0,0.00014611,2]
[405829787,1771345849176,-151.0,0.00014611,2]
[405829788,1771345849185,-151.0,0.00014611,2]
[405829789,1771345849196,-1426.886424,0.00014611,2]
[405829790,1771345849205,-1426.886424,0.00014611,2]
[405829791,1771345849214,-1426.886424,0.00014611,2]
[405829792,1771345849223,-1426.886424,0.00014611,2]
[405829793,1771345849232,-3003.49774087,0.00014755,2]
[405829794,1771345849241,-656.016296,0.0001492,7]
[405829795,1771345849250,-200.0,0.00014932,2]
[405829796,1771345849260,-200.0,0.00014932,2]
[405829797,1771345849269,-500.0,0.00014932,2]
[405829798,1771345849278,-500.0,0.00014968,2]
[405829799,1771345849286,-500.0,0.00014968,2]
[405829800,1771345849296,-500.99019732,0.00014968,2]
[405829801,1771345849305,-500.0,0.00014968,2]
[405829802,1771345849314,-1597.03636758,0.00014968,2]
[405829803,1771345849324,-1512.37454404,0.00014968,2]
[405829804,1771345849333,-500.0,0.00014968,2]
[405829805,1771345849342,-1073.45760824,0.00014968,2]
[405829806,1771345849352,-1500.0,0.00014968,2]
[405829807,1771345849361,-500.0,0.00014968,2]
[405829808,1771345849370,-500.0,0.00014968,2]
[405829809,1771345849379,-215.83370402,0.00014968,2]
[405829810,1771345849389,-1003.2366262,0.00014968,2]
[405829811,1771345849398,-500.0,0.00014968,2]
[405829812,1771345849408,-1500.0,0.00014968,2]
[405829813,1771345849420,-501.26419244,0.00014968,2]
[405829814,1771345849430,-1500.0,0.00014968,2]
[405829815,1771345849444,-1500.0,0.00014968,2]
[405829816,1771345849454,-408.66766903,0.00014968,2]
[405829817,1771345849464,-1500.0,0.00014968,2]
[405829818,1771345849475,-250.0,0.00015,2]
[405829819,1771345849486,-2055.50045313,0.00015,2]
[405829820,1771345849496,-8002.23365242,0.00015,2]
[405829821,1771345849504,-151.76907395,0.00015,2]
[405829822,1771345849515,-39267.66050178,0.00015064,2]
[405829823,1771345849524,-28272.67546645,0.00015064,2]
[405829824,1771345849533,-704.93,0.00015068,2]
[405829825,1771345849542,-274.645096,0.00015068,2]
[405829826,1771345849551,-274.645096,0.00015068,2]
[405829827,1771345849561,-274.645096,0.00015068,2]
[405829828,1771345849570,-274.645096,0.00015068,2]
[405829829,1771345849579,-274.645096,0.00015068,2]
[405829830,1771345849588,-274.645096,0.00015068,2]
[405829831,1771345849597,-274.645096,0.00015068,2]
[405829832,1771345849606,-274.645096,0.00015068,2]
[405829833,1771345849615,-12762.5325531,0.00015125,2]
[405829834,1771345849625,-1517.64,0.000153,2]
[405829835,1771345849635,-836.63,0.00015399,2]
[405829836,1771345849644,-960.44,0.00015399,2]
[405829837,1771345849653,-960.44,0.00015399,2]
[405829838,1771345849663,-960.44,0.00015399,2]
[405829839,1771345849672,-960.44,0.00015399,2]
[405829840,1771345849681,-960.53627779,0.00015399,2]
[405829841,1771345849690,-1563.42,0.00015399,2]
[405829842,1771345849700,-500.0,0.00015399,2]
[405829843,1771345849709,-500.0,0.00015399,2]
[405829844,1771345849719,-500.0,0.00015399,2]
[405829845,1771345849728,-383.99953744,0.00015399,2]
[405829846,1771345849737,-1435.37,0.00015399,2]
[405829847,1771345849746,-1435.37,0.00015399,2]
[405829848,1771345849755,-1435.37,0.00015399,2]
[405829849,1771345849764,-1435.37,0.00015399,2]
[405829850,1771345849774,-1435.56015198,0.00015399,2]
[405829851,1771345849783,-1071.6,0.00015399,2]
[405829852,1771345849792,-1071.6,0.00015399,2]
[405829853,1771345849801,-1071.6,0.00015399,2]
[405829854,1771345849811,-1071.6,0.00015399,2]
[405829855,1771345849820,-1071.8368361,0.00015399,2]
[405829856,1771345849830,-500.0,0.00015399,2]
[405829857,1771345849839,-500.0,0.00015399,2]
[405829858,1771345849849,-509.61038486,0.000154,2]
[405829859,1771345849858,-200.0,0.0001548,2]
[405829860,1771345849867,-200.0,0.0001548,2]
[405829861,1771345849877,-500.0,0.0001548,2]
[405829862,1771345849887,-500.0,0.00015516,2]
[405829863,1771345849896,-158.35387756,0.00015516,2]
[405829864,1771345849906,-1409.50775716,0.00015516,2]
[405829865,1771345849916,-1219.64567907,0.00015516,2]
[405829866,1771345849926,-749.18947078,0.00015516,2]
[405829867,1771345849935,-153.934786,0.0001555,2]
[405829868,1771345849944,-153.227768,0.0001555,2]
[405829869,1771345849954,-153.0,0.00015566,3]
[405829870,1771345849964,-159.72603444,0.00015616,7]
[405829871,1771345849973,-3695.351545,0.00015616,7]
[405829872,1771345849983,-1000.0,0.00015659,7]
[405829873,1771345849993,-500.0,0.00015686,2]
[405829874,1771345850002,-288.133993,0.00015709,7]
[405829875,1771345850012,-704.93,0.00015753,2]
[405829876,1771345850022,-2245.73805852,0.00015807,2]
[405829877,1771345850031,-173.0767049,0.00015927,2]
[405829878,1771345850041,-5000.0,0.0001596,2]
[405829879,1771345850051,-150.0,0.00016,2]
[405829880,1771345850060,-418.83903334,0.00016,2]
[405829881,1771345850070,-2262.0,0.00016,2]
[405829882,1771345850079,-200.0,0.00016028,2]
[405829883,1771345850089,-200.0,0.00016028,2]
[405829884,1771345850098,-500.0,0.00016028,2]
[405829885,1771345850108,-39267.66050178,0.00016073,2]
[405829886,1771345850117,-28272.67546645,0.00016073,2]
[405829887,1771345850127,-500.0,0.00016173,2]
[405829888,1771345850137,-500.0,0.00016173,2]
[405829889,1771345850147,-500.0,0.00016173,2]
[405829890,1771345850157,-162.380719,0.00016173,2]
[405829891,1771345850168,-500.0,0.00016173,2]
[405829892,1771345850178,-174.61919141,0.00016173,2]
[405829893,1771345850188,-500.0,0.00016173,2]
[405829894,1771345850197,-500.0,0.00016173,2]
[405829895,1771345850207,-1428.38747117,0.00016173,2]
[405829896,1771345850216,-9552.16786547,0.00016173,2]
[405829897,1771345850226,-500.0,0.00016173,2]
[405829898,1771345850236,-578.20924308,0.00016173,2]
[405829899,1771345850245,-500.0,0.00016173,2]
[405829900,1771345850255,-500.0,0.00016173,2]
[405829901,1771345850264,-500.0,0.00016173,2]
[405829902,1771345850274,-500.0,0.00016173,2]
[405829903,1771345850284,-3000.0,0.00016173,2]
[405829904,1771345850294,-500.0,0.00016173,2]
[405829905,1771345850303,-209.40437684,0.00016173,2]
[405829906,1771345850312,-151.0,0.00016173,2]
[405829907,1771345850322,-3000.0,0.00016173,2]
[405829908,1771345850332,-250.0,0.00016173,2]
[405829909,1771345850342,-500.0,0.00016173,2]
[405829910,1771345850352,-151.0,0.00016173,2]
[405829911,1771345850361,-250.0,0.00016173,2]
[405829912,1771345850370,-3000.0,0.00016173,2]
[405829913,1771345850380,-250.0,0.00016173,2]
[405829914,1771345850389,-500.0,0.00016173,2]
[405829915,1771345850398,-151.0,0.00016173,2]
[405829916,1771345850407,-3000.0,0.00016173,2]
[405829917,1771345850418,-250.0,0.00016173,2]
[405829918,1771345850428,-253.83621088,0.00016173,2]
[405829919,1771345850440,-500.0,0.00016173,2]
[405829920,1771345850450,-151.0,0.00016173,2]
[405829921,1771345850459,-3000.0,0.00016173,2]
[405829922,1771345850469,-250.0,0.00016173,2]
[405829923,1771345850479,-500.0,0.00016173,2]
[405829924,1771345850488,-151.0,0.00016173,2]
[405829925,1771345850498,-3000.0,0.00016173,2]
[405829926,1771345850509,-250.0,0.00016173,2]
[405829927,1771345850518,-500.0,0.00016173,2]
[405829928,1771345850528,-151.0,0.00016173,2]
[405829929,1771345850537,-3000.0,0.00016173,2]
[405829930,1771345850547,-250.0,0.00016173,2]
[405829931,1771345850556,-500.0,0.00016173,2]
[405829932,1771345850565,-151.0,0.00016173,2]
[405829933,1771345850575,-3000.0,0.00016173,2]
[405829934,1771345850584,-250.0,0.00016173,2]
[405829935,1771345850593,-151.0,0.00016173,2]
[405829936,1771345850603,-3000.0,0.00016173,2]
[405829937,1771345850612,-250.0,0.00016173,2]
[405829938,1771345850621,-500.0,0.00016173,2]
[405829939,1771345850632,-151.0,0.00016173,2]
[405829940,1771345850641,-2070.81608438,0.00016173,2]
[405829941,1771345850651,-250.0,0.00016173,2]
[405829942,1771345850661,-500.0,0.00016173,2]
[405829943,1771345850670,-151.0,0.00016173,2]
[405829944,1771345850680,-151.0,0.00016173,2]
[405829945,1771345850689,-151.12957794,0.00016173,2]
[405829946,1771345850698,-693.3919763,0.00016173,2]
[405829947,1771345850708,-250.0,0.00016173,2]
[405829948,1771345850718,-250.0,0.00016173,2]
[405829949,1771345850727,-160.0,0.00016173,2]
[405829950,1771345850737,-250.0,0.00016173,2]
[405829951,1771345850747,-250.0,0.00016173,2]
[405829952,1771345850756,-250.0,0.00016173,2]
[405829953,1771345850765,-250.0,0.00016173,2]
[405829954,1771345850775,-250.0,0.00016173,2]
[405829955,1771345850784,-721.12765535,0.00016173,2]
[405829956,1771345850798,-250.0,0.00016173,2]
[405829957,1771345850807,-250.0,0.00016173,2]
[405829958,1771345850817,-250.0,0.00016173,2]
[405829959,1771345850827,-250.0,0.00016173,2]
[405829960,1771345850837,-250.0,0.00016173,2]
[405829961,1771345850846,-250.0,0.00016173,2]
[405829962,1771345850856,-250.0,0.00016173,2]
[405829963,1771345850866,-250.0,0.00016173,2]
[405829964,1771345850876,-250.0,0.00016173,2]
[405829965,1771345850885,-250.0,0.00016173,2]
[405829966,1771345850895,-250.0,0.00016173,2]
[405829967,1771345850904,-250.0,0.00016173,2]
[405829968,1771345850915,-250.0,0.00016173,2]
[405829969,1771345850925,-250.0,0.00016173,2]
[405829970,1771345850935,-250.0,0.00016173,2]
[405829971,1771345850944,-250.0,0.00016173,2]
[405829972,1771345850954,-250.0,0.00016173,2]
[405829973,1771345850963,-250.0,0.00016173,2]
[405829974,1771345850973,-250.0,0.00016173,2]
[405829975,1771345850983,-250.0,0.00016173,2]
[405829976,1771345850992,-743.50770149,0.00016173,2]
[405829977,1771345851002,-250.0,0.00016173,2]
[405829978,1771345851012,-250.0,0.00016173,2]
[405829979,1771345851021,-250.0,0.00016173,2]
[405829980,1771345851031,-250.0,0.00016173,2]
[405829981,1771345851040,-250.0,0.00016173,2]
[405829982,1771345851050,-250.0,0.00016173,2]
[405829983,1771345851059,-250.0,0.00016173,2]
[405829984,1771345851069,-250.0,0.00016173,2]
[405829985,1771345851078,-250.0,0.00016173,2]
[405829986,1771345851088,-250.0,0.00016173,2]
[405829987,1771345851098,-250.0,0.00016173,2]
[405829988,1771345851108,-250.0,0.00016173,2]
[405829989,1771345851117,-250.0,0.00016173,2]
[405829990,1771345851127,-250.0,0.00016173,2]
[405829991,1771345851136,-250.0,0.00016173,2]
[405829992,1771345851146,-250.0,0.00016173,2]
[405829993,1771345851156,-250.0,0.00016173,2]
[405829994,1771345851167,-250.0,0.00016173,2]
[405829995,1771345851177,-250.0,0.00016173,2]
[405829996,1771345851187,-151.0,0.00016173,2]
[405829997,1771345851197,-250.0,0.00016173,2]
[405829998,1771345851206,-250.0,0.00016173,2]
[405829999,1771345851215,-250.0,0.00016173,2]
[405830000,1771345851225,-250.0,0.00016173,2]
[405830001,1771345851234,-250.0,0.00016173,2]
[405830002,1771345851244,-250.0,0.00016173,2]
[405830003,1771345851253,-693.3919763,0.00016173,2]
[405830004,1771345851263,-250.0,0.00016173,2]
[405830005,1771345851272,-250.0,0.00016173,2]
[405830006,1771345851282,-200.0,0.00016173,2]
[405830007,1771345851292,-250.0,0.00016173,2]
[405830008,1771345851302,-209.40437684,0.00016173,2]
[405830009,1771345851311,-277.35679052,0.00016173,2]
[405830010,1771345851321,-150.0,0.000162,2]
[405830011,1771345851330,-4587.476,0.000162,2]
[405830012,1771345851340,-5000.0,0.000162,2]
[405830013,1771345851349,-713.2421,0.000162,2]
[405830014,1771345851358,-58370.16387893,0.000162,5]
[405830015,1771345851368,-9905.5980765,0.00016228,2]
[405830016,1771345851377,-151.0,0.00016228,2]
[405830017,1771345851387,-719.04747942,0.00016228,2]
[405830018,1771345851396,-394.84264916,0.00016244,2]
[405830019,1771345851405,-152.74609945,0.00016244,2]
[405830020,1771345851416,-274.66803602,0.00016244,2]
[405830021,1771345851426,-10272.10520533,0.00016283,2]
[405830022,1771345851437,-151.0,0.00016283,2]
[405830023,1771345851448,-745.65223616,0.00016283,2]
[405830024,1771345851458,-3003.49774087,0.00016328,2]
[405830025,1771345851468,-1725.36664557,0.00016338,2]
[405830026,1771345851479,-151.0,0.00016338,2]
[405830027,1771345851488,-773.2413689,0.00016338,2]
[405830028,1771345851498,-200.0,0.0001634,2]
[405830029,1771345851508,-5263.465942,0.00016345,7]
[405830030,1771345851517,-2751.70990089,0.00016368,2]
[405830031,1771345851527,-151.0,0.00016393,2]
[405830032,1771345851537,-801.85129955,0.00016393,2]
[405830033,1771345851547,-150.0,0.00016425,2]
[405830034,1771345851556,-500.0,0.00016437,2]
[405830035,1771345851565,-2553.1,0.00016438,2]
[405830036,1771345851575,-704.93,0.00016438,2]
[405830037,1771345851585,-151.02975848,0.00016438,2]
[405830038,1771345851594,-151.0,0.00016438,2]
[405830039,1771345851603,-151.0,0.00016438,2]
[405830040,1771345851613,-151.0,0.00016438,2]
[405830041,1771345851622,-248.760582,0.00016438,2]
[405830042,1771345851632,-151.0,0.00016438,2]
[405830043,1771345851642,-151.0,0.00016448,2]
[405830044,1771345851651,-831.51979763,0.00016448,2]
[405830045,1771345851661,-151.0,0.00016503,2]
[405830046,1771345851671,-862.28603014,0.00016503,2]
[405830047,1771345851680,-151.0,0.00016558,2]
[405830048,1771345851689,-894.19061326,0.00016558,2]
[405830049,1771345851699,-12762.5325531,0.00016593,2]
[405830050,1771345851708,-151.0,0.00016613,2]
[405830051,1771345851718,-927.27566595,0.00016613,2]
[405830052,1771345851727,-215.79,0.00016625,2]
[405830053,1771345851736,-150.0,0.0001665,2]
[405830054,1771345851746,-264.2662276,0.00016654,2]
[405830055,1771345851755,-1000.0,0.0001666,2]
[405830056,1771345851764,-1000.0,0.0001666,2]
[405830057,1771345851774,-1000.0,0.0001666,2]
[405830058,1771345851783,-1000.0,0.0001666,2]
[405830059,1771345851793,-1000.0,0.0001666,2]
[405830060,1771345851802,-1000.0,0.0001666,2]
[405830061,1771345851811,-1000.0,0.0001666,2]
[405830062,1771345851821,-1000.0,0.0001666,2]
[405830063,1771345851830,-1000.0,0.0001666,2]
[405830064,1771345851840,-1000.0,0.0001666,2]
[405830065,1771345851849,-1000.0,0.0001666,2]
[405830066,1771345851858,-151.0,0.00016668,2]
[405830067,1771345851868,-961.58486559,0.00016668,2]
[405830068,1771345851878,-172.73,0.00016712,2]
[405830069,1771345851888,-181.08010149,0.00016721,2]
[405830070,1771345851898,-1100.42979595,0.00016721,2]
[405830071,1771345851907,-217.15233878,0.00016721,2]
[405830072,1771345851919,-719.04747942,0.00016721,2]
[405830073,1771345851928,-771.01748645,0.00016721,2]
[405830074,1771345851938,-200.0,0.00016721,2]
[405830075,1771345851948,-217.15233878,0.00016721,2]
[405830076,1771345851958,-287.61899177,0.00016721,2]
[405830077,1771345851968,-151.0,0.00016723,2]
[405830078,1771345851978,-997.16350561,0.00016723,2]
[405830079,1771345851988,-151.0,0.00016778,2]
[405830080,1771345851998,-358.88346367,0.000168,2]
[405830081,1771345852008,-215.78732778,0.00016813,2]
[405830082,1771345852019,-151.0,0.00016833,2]
[405830083,1771345852028,-150.0,0.00016875,2]
[405830084,1771345852038,-151.0,0.00016888,2]
[405830085,1771345852048,-267.05598539,0.00016943,2]
[405830086,1771345852058,-173.57638878,0.00017,7]
[405830087,1771345852069,-300.0,0.00017,2]
[405830088,1771345852078,-160.0,0.00017,7]
[405830089,1771345852089,-833706.10579476,0.00017,2]
[405830090,1771345852099,-274.645096,0.00017,2]
[405830091,1771345852109,-274.645096,0.00017,2]
[405830092,1771345852119,-274.645096,0.00017,2]
[405830093,1771345852342,-274.645096,0.00017,2]
[405830094,1771345852353,-151.0,0.00017,2]
[405830095,1771345852363,-151.0,0.00017,2]
[405830096,1771345852372,-151.0,0.00017,2]
[405830097,1771345852381,-151.0,0.00017,2]
[405830098,1771345852391,-1426.886424,0.00017,2]
[405830099,1771345852400,-1426.886424,0.00017,2]
[405830100,1771345852409,-1426.886424,0.00017,2]
[405830101,1771345852420,-1426.886424,0.00017,2]
[405830102,1771345852430,-151.0,0.00017,2]
[405830103,1771345852443,-326.60966214,0.00017099,2]
[405830104,1771345852453,-150.0,0.000171,2]
[405830105,1771345852464,-836.63,0.00017136,2]
[405830106,1771345852475,-1563.42,0.00017136,2]
[405830107,1771345852484,-500.0,0.00017136,2]
[405830108,1771345852494,-500.0,0.00017136,2]
[405830109,1771345852503,-500.0,0.00017136,2]
[405830110,1771345852513,-1022.99162526,0.00017184,2]
[405830111,1771345852522,-1088.37215301,0.00017217,2]
[405830112,1771345852531,-350.0,0.0001722,2]
[405830113,1771345852540,-151.0,0.0001723,2]
[405830114,1771345852550,-154.135199,0.0001723,2]
[405830115,1771345852559,-151.0,0.0001723,2]
[405830116,1771345852569,-151.0,0.0001723,2]
[405830117,1771345852579,-151.0,0.0001723,2]
[405830118,1771345852588,-473.31058807,0.00017248,2]
[405830119,1771345852597,-187.78006525,0.00017269,2]
[405830120,1771345852606,-225.18697532,0.00017269,2]
[405830121,1771345852616,-745.65223616,0.00017269,2]
[405830122,1771345852626,-799.54513345,0.00017269,2]
[405830123,1771345852635,-166.95668844,0.00017269,2]
[405830124,1771345852645,-298.26089446,0.00017269,2]
[405830125,1771345852655,-150.0,0.00017325,2]
[405830126,1771345852664,-150.0,0.0001735,7]
[405830127,1771345852673,-328.87800463,0.000174,7]
[405830128,1771345852683,-2555.4951848,0.000174,5]
[405830129,1771345852692,-184.0,0.00017455,2]
[405830130,1771345852702,-168.3888056,0.00017542,2]
[405830131,1771345852711,-160.0,0.00017542,2]
[405830132,1771345852722,-1009.97871237,0.00017542,2]
[405830133,1771345852731,-1149.70782561,0.00017542,2]
[405830134,1771345852741,-1148.05177833,0.00017542,2]
[405830135,1771345852750,-1037.09506035,0.00017542,2]
[405830136,1771345852759,-1018.99210472,0.00017542,2]
[405830137,1771345852769,-1088.18283763,0.00017542,2]
[405830138,1771345852778,-1055.58363865,0.00017542,2]
[405830139,1771345852787,-1043.2739788,0.00017542,2]
[405830140,1771345852797,-150.0,0.0001755,2]
[405830141,1771345852807,-350.0,0.00017551,2]
[405830142,1771345852816,-1000.0,0.00017551,2]
[405830143,1771345852825,-350.0,0.00017572,2]
[405830144,1771345852835,-583.69347785,0.00017624,7]
[405830145,1771345852844,-184.0,0.00017639,2]
[405830146,1771345852854,-6001.36620396,0.0001764,2]
[405830147,1771345852863,-1089.85060355,0.0001764,2]
[405830148,1771345852873,-1080.08562551,0.0001764,2]
[405830149,1771345852882,-1137.09999459,0.0001764,2]
[405830150,1771345852892,-1003.52305971,0.0001764,2]
[405830151,1771345852901,-1092.31069983,0.0001764,2]
[405830152,1771345852911,-1040.40757762,0.0001764,2]
[405830153,1771345852922,-1134.77245018,0.0001764,2]
[405830154,1771345852932,-1067.91143085,0.0001764,2]
[405830155,1771345852942,-184.0,0.0001767,2]
[405830156,1771345852951,-784.32813885,0.000177,2]
[405830157,1771345852961,-403.0,0.000177,5]
[405830158,1771345852972,-150.0,0.00017775,2]
[405830159,1771345852982,-836.63,0.00017807,2]
[405830160,1771345852991,-1563.42,0.00017807,2]